[Event "Oceania Zonal Open 2023"]
[Site "Melbourne"]
[Date "2023.01.26"]
[Round "4.9"]
[White "Kargosha, Bahman"]
[Black "Radisich, Matt"]
[Result "1/2-1/2"]
[ECO "A43"]
[WhiteElo "2096"]
[BlackElo "1676"]
[Annotator "TA"]
[PlyCount "73"]
[EventDate "2023.01.09"]
[EventType "swiss"]
[EventCountry "AUS"]
[SourceTitle "playchess.com"]
[Source "ChessBase"]
[SourceQuality "1"]
[TimeControl "5400+30"]

{[%evp 16,73,15,24,37,32,60,44,47,42,43,23,56,56,74,12,93,100,104,96,93,87,87,41,43,43,38,34,36,19,16,15,80,0,0,0,0,0,0,0,0,0,0,-27,14,0,0,0,0,-88,-66,-52,-74,-73,-75,-67,0,0,0,0]} 1. d4 {[%emt 0:00:04]} Nf6 {[%emt 0:00:25]} 2. Nf3 {[%emt 0:00:09]} c5 {[%emt 0:04:18]} 3. d5 {[%emt 0:00:20]} d6 {[%emt 0:00:42]} 4. Nc3 {[%emt 0:00:08]} g6 {[%emt 0:01:41]} 5. e4 {[%emt 0:00:06]} Bg7 {[%emt 0:00:11]} 6. Bb5+ {[%emt 0:00:05]} Bd7 {[%emt 0:00:55]} 7. a4 {[%emt 0:00:19]} O-O {[%emt 0:00:15]} 8. h3 {[%emt 0:01:05]} Na6 {[%emt 0:01:23]} 9. O-O {[%emt 0:01:55]} Nc7 {[%emt 0:01:00] A43: Schmid Benoni.} 10. Bc4 {[%emt 0:02:03]} b6 {[%emt 0:01:56]} 11. Re1 {[%emt 0:02:59] [#]} e5 $146 {[%emt 0:02:44] White is slightly better.} ({Predecessor:} 11... a6 12. e5 Nfe8 13. e6 fxe6 14. dxe6 Bc6 15. Nd5 Nf6 16. Nxf6+ Rxf6 17. Bg5 Bxf3 18. gxf3 {1-0 Levin,A (1996)-Wesolowska,H (1744) Titled Tuesday intern op 05th Apr Late blitz 2022 (7)}) 12. dxe6 {[%emt 0:15:31]} Bxe6 {[%emt 0:00:48]} 13. Bf1 {[%emt 0:00:27]} Qd7 {[%emt 0:15:31]} 14. Bg5 {[%emt 0:04:09]} Qc6 {[%emt 0:10:04]} 15. Qc1 {[%emt 0:15:07]} (15. Bb5 $16 Nxb5 16. axb5) 15... a6 {[%emt 0:05:05]} (15... d5 $1 $11) 16. Qf4 $16 {[%emt 0:03:11]} Nh5 {[%emt 0:00:49]} 17. Qd2 {[%emt 0:03:16]} b5 {[%emt 0:06:39]} 18. axb5 {[%emt 0:07:02]} (18. Be7 {looks sharper.} Rfc8 19. axb5 Nxb5 20. Nxb5 axb5 21. Qxd6 Qxd6 22. Bxd6 Rxa1 23. Rxa1 Bxb2 24. Rb1) 18... axb5 {[%emt 0:00:09][%cal Ba6b5,Bb5b4][%mdl 32]} 19. Rad1 {[%emt 0:00:08]} (19. Be7 $16) 19... b4 $1 $14 {[%emt 0:00:36]} 20. Nd5 {[%emt 0:00:18]} (20. Qxd6 $2 {loses.} Qxd6 21. Rxd6 bxc3 $19) 20... Bxd5 {[%emt 0:05:32]} 21. exd5 {[%emt 0:00:05]} Qb6 {[%emt 0:01:07]} 22. g4 {[%emt 0:03:57]} Nf6 {[%emt 0:01:33]} 23. Bc4 {[%emt 0:00:51]} Nd7 {[%emt 0:00:23] [#]} (23... Rfe8 $11) 24. Bh6 {[%emt 0:01:13] This pair of bishops is nice.} (24. Be7 $1 $16) 24... Rfe8 $11 {[%emt 0:09:14]} 25. Bxg7 {[%emt 0:01:57]} Kxg7 {[%emt 0:00:07]} 26. Qf4 {[%emt 0:00:26]} Rxe1+ {[%emt 0:04:39]} 27. Rxe1 {[%emt 0:00:29]} Re8 {[%emt 0:01:27] Repels Re7} 28. Rxe8 {[%emt 0:05:52]} Nxe8 {[%emt 0:00:09]} 29. h4 {[%emt 0:01:12][%cal Bh3h4,Bh4h5][%mdl 32]} f6 {[%emt 0:05:34] Black is weak on the light squares} 30. h5 {[%emt 0:07:02]} Ne5 {[%emt 0:04:23]} 31. h6+ {[%emt 0:01:31]} Kg8 {[%emt 0:00:58]} 32. g5 {[%emt 0:12:29]} (32. Nxe5 $11 dxe5 33. Qf3 (33. d6+ Kf8 $11)) 32... Nxf3+ {[%emt 0:04:41]} 33. Qxf3 {[%emt 0:00:06]} fxg5 {[%emt 0:00:30]} 34. Qg4 {[%emt 0:05:44][%cal Og4d7] [#] Qd7! would be deadly.} Qd8 {[%emt 0:00:19] Wards off Qd7} 35. Bb5 {[%emt 0:02:06]} Kf8 {[%emt 0:03:04]} (35... Nf6 $1 $15 36. Qxg5 Qe7) 36. Bxe8 $1 {[%emt 0:02:00]} Kxe8 {[%emt 0:00:26]} 37. Qe6+ {[%emt 0:01:57] Weighted Error Value: White=0.18 (very precise) /Black=0.17 (very precise)} 1/2-1/2

[Event "Oceania Zonal Open 2023"]
[Site "Melbourne"]
[Date "2023.01.25"]
[Round "4.9"]
[White "Anderson, Brendan"]
[Black "Fu, Yihe"]
[Result "0-1"]
[ECO "D38"]
[WhiteElo "1926"]
[BlackElo "2149"]
[Annotator "TA"]
[PlyCount "96"]
[EventDate "2023.01.09"]
[EventType "swiss"]
[EventCountry "AUS"]
[SourceTitle "playchess.com"]
[Source "ChessBase"]
[SourceQuality "1"]
[TimeControl "5400+30"]

{[%evp 17,96,1,1,-6,-8,-12,0,0,0,-20,-27,-32,-20,-20,-16,-32,-28,-39,-33,-63,-63,-59,0,0,0,0,0,0,8,-17,-16,-162,-170,-251,-90,-98,-101,-100,-48,-47,-53,-56,0,-111,-109,-226,-174,-172,-164,-212,-208,-184,-203,-185,-202,-205,-206,-185,-181,-241,-128,-128,-128,-127,-126,-126,-100,-1240,-1190,-878,-580,-29979,-29980,-29980,-29981,-29981,-29982,-29982,-29983,-29982,-29983]} 1. d4 {[%emt 0:00:02]} Nf6 {[%emt 0:00:06]} 2. c4 {[%emt 0:00:04]} e6 {[%emt 0:00:07]} 3. Nf3 {[%emt 0:00:04]} d5 {[%emt 0:00:07]} 4. Nc3 {[%emt 0:00:04]} Bb4 {[%emt 0:01:01]} 5. Bg5 {[%emt 0:00:08]} h6 {[%emt 0:00:46]} 6. Bxf6 {[%emt 0:00:06]} Qxf6 {[%emt 0:00:07]} 7. e3 {[%emt 0:00:05]} O-O {[%emt 0:01:24]} 8. Rc1 {[%emt 0:00:24]} c6 {[%emt 0:00:51]} 9. cxd5 {[%emt 0:03:40]} exd5 {[%emt 0:00:11]} 10. a3 {[%emt 0:00:58] D38: Queen's Gambit Declined: Ragozin Defence (4 Nf3 Bb4).} Bd6 {[%emt 0:00:14]} 11. Bd3 {[%emt 0:02:31]} Bg4 {[%emt 0:01:55]} 12. h3 {[%emt 0:00:10] The position is equal.} Bh5 {[%emt 0:00:40] [#]} 13. O-O $146 {[%emt 0:01:06]} ({Predecessor:} 13. Be2 Qe7 14. O-O Nd7 15. Qc2 Nf6 16. Na4 Ne4 17. Nc5 f5 18. Nd3 Bxf3 19. Bxf3 {0-1 Vidarte Morales,A (2286)-Lazaro Pujol,A (2348) Platja d'Aro 2022 (9)}) 13... Nd7 {[%emt 0:01:15]} 14. Be2 {[%emt 0:04:38]} Bg6 {[%emt 0:05:40]} 15. Bd3 {[%emt 0:10:16]} Rfe8 {[%emt 0:01:33]} 16. b4 {[%emt 0:01:15]} a5 {[%emt 0:00:26]} 17. Bxg6 {[%emt 0:00:29]} Qxg6 {[%emt 0:00:50]} 18. Qb3 {[%emt 0:00:11]} axb4 {[%emt 0:00:27]} 19. axb4 {[%emt 0:00:08]} Nb6 {[%emt 0:00:16]} ({Black should play} 19... b5 $1 $15) 20. b5 $11 {[%emt 0:03:54]} Nc4 {[%emt 0:05:57]} 21. bxc6 {[%emt 0:02:25]} bxc6 {[%emt 0:00:10]} 22. Qc2 {[%emt 0:00:44]} Qe6 {[%emt 0:15:47]} 23. Nb1 {[%emt 0:06:02]} Reb8 {[%emt 0:05:47]} 24. Nbd2 {[%emt 0:03:13]} (24. Qd1 $11) 24... Rb2 $19 {[%emt 0:00:26]} 25. Qd1 {[%emt 0:02:15]} (25. Qd3 {was the only chance.} Ra3 26. Nxc4 Rxd3 27. Nxb2) 25... Raa2 $2 {[%emt 0:01:29]} (25... Nxd2 $19 {has better winning chances.} 26. Nxd2 Raa2) 26. Nxc4 $17 {[%emt 0:00:37]} dxc4 {[%emt 0:00:07]} 27. Ne5 {[%emt 0:04:16][%mdl 64] Deflection} Bxe5 {[%emt 0:08:09]} (27... Re2 $1 $17 {...Qd5 would be deadly.} 28. Nxc4 Bg3 29. Qxe2 Rxe2 30. fxg3 c5 31. dxc5 f5) 28. dxe5 $15 {[%emt 0:00:38]} Qxe5 {[%emt 0:00:26]} 29. Qg4 {[%emt 0:03:08]} Qf6 {[%emt 0:10:03]} (29... c3 $15 30. Qc8+ Kh7 31. Qxc6 c2) 30. Rxc4 {[%emt 0:01:44]} (30. Qxc4 $11 c5 31. e4) 30... Rxf2 $17 {[%emt 0:00:31]} 31. Rf4 {[%emt 0:00:24]} (31. Rxf2 $17 Rxf2 32. Qd4) 31... Rxf1+ {[%emt 0:01:35]} 32. Rxf1 $19 {[%emt 0:00:12][%mdl 4096] Endgame KQR-KQR} Ra1 $1 $36 {[%emt 0:00:09][%mdl 2048] Black is on the roll.} 33. Qc8+ {[%emt 0:01:41]} (33. Rxa1 {was worth a try.} Qxa1+ 34. Kf2) 33... Kh7 {[%emt 0:00:18]} 34. Rxa1 {[%emt 0:00:05]} Qxa1+ {[%emt 0:00:06] KQ-KQ} 35. Kf2 {[%emt 0:00:15]} Qa2+ {[%emt 0:00:29]} 36. Kf1 {[%emt 0:02:37]} Qd5 {[%emt 0:00:11]} 37. Qc7 {[%emt 0:00:22]} f5 {[%emt 0:01:48] Strongly threatening ...c5.} 38. h4 {[%emt 0:00:27]} (38. Qf4 $142) 38... c5 {[%emt 0:01:42]} (38... Qc4+ $19 39. Kg1 Qxh4 40. Qxc6 Qe1+ 41. Kh2 Qxe3) 39. h5 $17 {[%emt 0:00:07]} c4 {[%emt 0:00:06][%cal Bc5c4,Bc4c3,Bc3c2][%mdl 32]} 40. Kf2 {[%emt 0:00:31]} Qd2+ {[%emt 0:02:51]} 41. Kf3 {[%emt 0:00:14]} c3 {[%emt 0:06:15] Hoping for ...Qd3.} 42. Qf7 $2 {[%emt 0:01:08][%mdl 8192] [#]} (42. Qc6 $17) 42... Qd1+ $1 $19 {[%emt 0:00:41]} 43. Kf2 {[%emt 0:00:18]} Qc2+ {[%emt 0:00:09]} 44. Kf3 {[%emt 0:00:21] [#]} Qe4+ $1 {[%emt 0:00:05] Black mates.} 45. Kf2 {[%emt 0:00:37]} c2 {[%emt 0:00:09] Active counter play!} 46. Qc7 {[%emt 0:00:23] [#]} f4 $1 {[%emt 0:00:22][%mdl 576] Deflection, Promotion} 47. exf4 {[%emt 0:00:22]} Qd4+ {[%emt 0:00:04]} 48. Kf3 {[%emt 0:00:53]} Qd1+ {[%emt 0:00:06][%mdl 64] Skewer.   Weighted Error Value: White=0.54/Black=0.18 (very precise)} 0-1

[Event "Oceania Zonal Open 2023"]
[Site "Melbourne"]
[Date "2023.01.25"]
[Round "4.10"]
[White "Zafirakos, Jesse"]
[Black "Bjelobrk, Igor"]
[Result "1/2-1/2"]
[ECO "C64"]
[WhiteElo "1902"]
[BlackElo "2405"]
[Annotator "TA"]
[PlyCount "73"]
[EventDate "2023.01.09"]
[EventType "swiss"]
[EventCountry "AUS"]
[SourceTitle "playchess.com"]
[Source "ChessBase"]
[SourceQuality "1"]
[TimeControl "5400+30"]

{[%evp 10,73,39,27,34,31,36,29,37,31,33,31,45,32,31,24,42,32,45,35,41,35,35,26,27,8,60,-14,4,-8,25,-28,0,-34,-14,-26,-23,-16,-4,2,0,0,11,0,0,0,0,0,0,0,3,0,24,0,0,1,41,33,115,116,105,100,112,81,98,62]} 1. e4 {[%emt 0:00:05]} e5 {[%emt 0:01:00]} 2. Nf3 {[%emt 0:00:12]} Nc6 {[%emt 0:00:06]} 3. Bb5 {[%emt 0:00:02]} a6 {[%emt 0:00:46]} 4. Ba4 {[%emt 0:00:03]} Bc5 {[%emt 0:00:29]} 5. c3 {[%emt 0:01:24]} Nge7 {[%emt 0:00:27]} 6. O-O {[%emt 0:00:10]} Ng6 {[%emt 0:00:34] C64: Ruy Lopez: Classical Defence (3...Bc5) except 4 0-0 Nf6.} 7. d4 {[%emt 0:00:15]} Ba7 {[%emt 0:00:19]} 8. Bg5 {[%emt 0:00:05]} f6 {[%emt 0:00:12] White has an edge.} 9. Be3 {[%emt 0:00:02]} O-O {[%emt 0:01:26]} 10. Nbd2 $1 {[%emt 0:00:58][%cal Bb1d2,Bd2f1,Bf1g3,Bg3f5][%mdl 32] 10.Nbd2 scores better than 10.d5.} d6 {[%emt 0:00:17]} 11. Re1 {[%emt 0:00:21]} Kh8 {[%emt 0:01:22]} 12. h3 {[%emt 0:00:27]} Bd7 {[%emt 0:01:05]} 13. Rc1 {[%emt 0:00:03]} Qe8 {[%emt 0:00:46][%cal Oc6d4]} 14. Bc2 {[%emt 0:02:08] [#]} a5 $146 {[%emt 0:01:20]} ({Predecessor:} 14... f5 15. exf5 Bxf5 16. Bxf5 Rxf5 17. Ne4 exd4 18. Bxd4 Nxd4 19. cxd4 Qd7 20. Neg5 Bb6 {1-0 Grischuk,A (2773)-Nihal,S (2650) Speed Chess Chess.com INT blitz 2021 (1.11)}) 15. Nf1 {[%emt 0:07:35]} b5 {[%emt 0:05:59]} 16. Ng3 {[%emt 0:04:24]} a4 {[%emt 0:08:31]} 17. Nf5 {[%emt 0:04:12]} Nd8 {[%emt 0:16:55]} ({Black should play} 17... Nce7 $11) 18. d5 {[%emt 0:05:49]} (18. b3 $14) 18... Nf7 {[%emt 0:07:22]} (18... Bxe3 {simplifies} 19. Nxe3 Nb7 20. h4 Nc5) 19. b3 {[%emt 0:04:20]} Nf4 {[%emt 0:02:20]} 20. Bxa7 {[%emt 0:07:59]} (20. Bxf4 $142 exf4 21. Qd2) 20... Rxa7 {[%emt 0:00:12]} 21. Kh2 {[%emt 0:02:17]} g6 {[%emt 0:06:12] [#] Strongly threatening ...axb3.} (21... axb3 {is interesting.} 22. axb3 Ng5 23. Ng1 Ra2) 22. Ne3 {[%emt 0:01:38]} axb3 {[%emt 0:01:01]} 23. axb3 {[%emt 0:00:38]} Qc8 {[%emt 0:00:06][%cal Rd7h3]} 24. Ng1 {[%emt 0:01:14]} Qb7 {[%emt 0:04:07]} 25. g3 {[%emt 0:02:40]} Nh5 {[%emt 0:00:04]} 26. Bd3 {[%emt 0:03:06]} Ra2 {[%emt 0:00:39]} 27. Rc2 {[%emt 0:01:09]} (27. Re2 $5 {[%cal Re2a2]} Rfa8 28. Nf3 $11) 27... Rfa8 {[%emt 0:01:14]} 28. Rxa2 {[%emt 0:00:44]} Rxa2 {[%emt 0:00:05]} 29. Re2 $36 {[%emt 0:00:39][%cal Be1e2,Be2b2,Bb2c2,Bc2c7][%mdl 2080] White is more active.} Ra3 {[%emt 0:01:17]} 30. Rb2 {[%emt 0:04:10]} b4 {[%emt 0:06:22]} 31. Qd2 {[%emt 0:06:19]} bxc3 $1 {[%emt 0:00:33]} 32. Qxc3 {[%emt 0:00:02]} Qa7 {[%emt 0:00:37]} 33. Rc2 {[%emt 0:03:56]} Be8 {[%emt 0:08:08]} (33... Ra2 $14) 34. Qxc7 {[%emt 0:02:11] White is better.} Qxc7 {[%emt 0:00:39]} 35. Rxc7 {[%emt 0:00:04] [#] Rc8 would be deadly.} Rxb3 {[%emt 0:00:07]} 36. Bc2 {[%emt 0:01:23] White is more active.} Rb8 {[%emt 0:00:30]} 37. Bd1 {[%emt 0:04:13] Weighted Error Value: White=0.12 (very precise) /Black=0.15 (very precise)} 1/2-1/2

[Event "Oceania Zonal Open 2023"]
[Site "Melbourne"]
[Date "2023.01.26"]
[Round "4.10"]
[White "Leong, Benjamin"]
[Black "O'Carroll, Jeremy"]
[Result "1/2-1/2"]
[ECO "B31"]
[WhiteElo "1776"]
[BlackElo "2068"]
[Annotator "TA"]
[PlyCount "116"]
[EventDate "2023.01.09"]
[EventType "swiss"]
[EventCountry "AUS"]
[SourceTitle "playchess.com"]
[Source "ChessBase"]
[SourceQuality "1"]
[TimeControl "5400+30"]

{[%evp 22,116,13,0,9,-19,-16,-18,26,26,27,27,27,27,27,27,189,187,273,270,431,122,101,99,206,0,0,0,-4,-49,-56,-57,-65,-127,-121,-125,-118,-89,-72,-79,0,0,0,0,0,0,0,0,0,0,0,0,0,0,0,0,0,0,0,0,0,0,0,0,0,0,0,0,0,0,0,0,0,0,0,0,0,-15,-4,-6,0,0,0,-14,0,0,0,-6,0,0,0,0,0,0,0,0,0]} 1. e4 {[%emt 0:00:42]} c5 {[%emt 0:00:17]} 2. Nf3 {[%emt 0:00:07]} Nc6 {[%emt 0:00:08]} 3. Bb5 {[%emt 0:00:07]} g6 {[%emt 0:00:20]} 4. O-O {[%emt 0:00:22]} Bg7 {[%emt 0:00:11]} 5. c3 {[%emt 0:00:14]} Nf6 {[%emt 0:00:37]} 6. e5 {[%emt 0:00:54]} Nd5 {[%emt 0:01:10]} 7. d4 {[%emt 0:00:58]} cxd4 {[%emt 0:03:17]} 8. cxd4 {[%emt 0:00:34]} O-O {[%emt 0:08:27]} 9. Nc3 {[%emt 0:00:42]} Nxc3 {[%emt 0:05:47]} 10. bxc3 {[%emt 0:00:09]} d6 {[%emt 0:00:47]} 11. exd6 {[%emt 0:04:05]} Qxd6 {[%emt 0:02:40]} 12. Re1 {[%emt 0:00:43]} a6 {[%emt 0:06:51] B31: Sicilian: 2...Nc6 3 Bb5 g6.} 13. Bxc6 {[%emt 0:06:28]} Qxc6 {[%emt 0:06:29]} 14. Ba3 {[%emt 0:00:59] [#]} Qxc3 $146 {[%emt 0:03:45]} ({Predecessor:} 14... Be6 15. Bxe7 Rfe8 16. Bg5 Qxc3 17. Rc1 Qa5 18. Rc5 Qxa2 19. d5 b6 20. Re2 Qa3 {½-½ Cadilhac,I (2024)-Feliciano Ebert,V (2239) Sao Bernardo do Campo op 2013 (3)}) 15. Bxe7 {[%emt 0:00:09] Black must now prevent Rc1.} Re8 {[%emt 0:01:14]} 16. Rc1 {[%emt 0:00:10]} Qa5 {[%emt 0:01:32]} 17. d5 {[%emt 0:00:19][%cal Bd4d5,Bd5d6][%mdl 32] Against Be6} Bd7 {[%emt 0:03:59][%cal Oa8c8]} 18. Qb3 {[%emt 0:02:14]} b5 $2 {[%emt 0:06:32]} (18... Rac8 $11 19. Rxc8 (19. Qxb7 Rxc1 20. Rxc1 Rxe7 $11) 19... Bxc8) 19. d6 $1 $18 {[%emt 0:00:29]} h6 {[%emt 0:07:04] Prevents Ng5.} (19... Qa4 $142) 20. Rc7 {[%emt 0:00:51]} Bg4 {[%emt 0:05:05]} (20... Rad8 $142 21. Kf1 (21. Qb1 Bf8 $16) 21... Qa4 22. Bxd8 Rxd8) 21. Rec1 $2 {[%emt 0:04:15]} (21. Re4 $18 {has better winning chances.} Bf5 22. Re3 (22. Bf6 Re6 $11)) 21... Be6 $16 {[%emt 0:08:36]} 22. Qc2 {[%emt 0:01:26] White is more active.} Bc4 {[%emt 0:04:16] [#]} (22... b4 $16 {was called for.}) 23. Nd2 $2 {[%emt 0:01:21]} (23. Qd2 $1 $18 {[%cal Rd2a5]} Qxd2 24. Nxd2) 23... Qxc7 $11 {[%emt 0:02:25][%mdl 64] Remove Defender, Deflection} 24. dxc7 {[%emt 0:00:12]} Rxe7 {[%emt 0:00:03]} 25. Nxc4 {[%emt 0:00:21]} Rxc7 $1 {[%emt 0:00:29][%mdl 64] Pin} 26. Qe4 {[%emt 0:00:13]} Rac8 {[%emt 0:00:25][%cal Rc7c4]} 27. Qd5 {[%emt 0:03:41]} bxc4 $17 {[%emt 0:00:30]} 28. h4 {[%emt 0:00:48]} c3 {[%emt 0:00:58] ...c2 is the strong threat.} 29. Rc2 {[%emt 0:00:14]} Bf6 {[%emt 0:04:11]} 30. h5 {[%emt 0:01:17] [#]} Rc5 {[%emt 0:06:13]} (30... g5 $1 $17) 31. Qf3 $1 $11 {[%emt 0:01:25] The position is equal.} Kg7 {[%emt 0:02:01]} 32. hxg6 {[%emt 0:00:07]} Kxg6 {[%emt 0:00:29]} 33. Qg3+ {[%emt 0:00:55]} Kh7 {[%emt 0:00:39]} 34. Qd3+ {[%emt 0:00:21]} Kg7 {[%emt 0:00:23]} 35. Qxa6 {[%emt 0:01:16]} Rd8 {[%emt 0:00:31] And now ...Rd2 would win.} 36. Qe2 {[%emt 0:00:05] Wards off Rd2} Rcd5 {[%emt 0:01:11]} 37. Qg4+ {[%emt 0:00:12]} Kf8 {[%emt 0:00:27]} 38. Qb4+ {[%emt 0:00:28]} Kg8 {[%emt 0:01:37]} 39. Rxc3 {[%emt 0:01:28] aiming for Rg3+.} Bxc3 {[%emt 0:00:10]} 40. Qxc3 {[%emt 0:00:08][%mdl 4096] Endgame KQ-KRR} R5d6 {[%emt 0:04:07]} 41. a4 {[%emt 0:00:12]} Ra8 {[%emt 0:02:11]} 42. a5 {[%emt 0:00:41]} Rda6 {[%emt 0:00:12]} 43. Qg3+ {[%emt 0:00:07]} Kf8 {[%emt 0:01:22]} 44. Qh4 {[%emt 0:00:24]} Kg7 {[%emt 0:00:09]} 45. Qd4+ {[%emt 0:00:24]} Kg8 {[%emt 0:00:35]} 46. Qg4+ {[%emt 0:00:57]} Kf8 {[%emt 0:00:32]} 47. Qh5 {[%emt 0:00:27]} Kg7 {[%emt 0:00:35]} 48. f4 {[%emt 0:00:17]} Rxa5 {[%emt 0:00:33]} 49. f5 {[%emt 0:00:09]} R5a6 {[%emt 0:02:09]} 50. Qg4+ {[%emt 0:00:17]} Kf6 {[%emt 0:00:38]} 51. Qh5 {[%emt 0:00:51]} Kg7 {[%emt 0:00:20]} 52. Qg4+ {[%emt 0:00:08]} Kf6 {[%emt 0:00:16]} 53. Qf4 {[%emt 0:00:25]} R8a7 {[%emt 0:00:50]} 54. Kh2 {[%emt 0:00:33]} Ra4 {[%emt 0:00:41]} 55. Qxh6+ {[%emt 0:00:30]} Kxf5 {[%emt 0:00:03]} 56. Kh3 {[%emt 0:00:21]} Ra3+ {[%emt 0:00:42]} 57. g3 {[%emt 0:01:48][%cal Bg2g3,Bg3g4][%mdl 32]} Ra1 {[%emt 0:00:23] ( -> ...Rh1+)} 58. g4+ {[%emt 0:00:08]} Ke5 {[%emt 0:00:35] Weighted Error Value: White=0.17 (very precise) /Black=0.20 (precise)} 1/2-1/2